Cogmind - Beta 12 *** ADVENTURER MODE // 2023.05.21 @ 14:44:33 Player: Ms. V3-11A Result: Destroyed by H-55 Commando with Gauss Rifle Performance ------------- Evolutions (2) 1000 Regions Visited (6) 1200 Robots Destroyed (71) 355 Value Destroyed (3823) 3823 Prototype IDs (6) 120 Alien Tech Used (0) 0 Bonus (1267) 1267 TOTAL SCORE: 7765 Bonus ------- High Alert Combat Kills 437 Follower Combat Kills 130 Entered Garrisons 200 Used RIF Installer 500 Cogmind --------- Core Integrity 0/550 Matter 259/300 Energy 44/100 System Corruption 23% Temperature Hot (204) Movement Core (900) Ox17 Location -8/Garrison Parts ------- > --- POWER (1) -------- (None) > --- PROPULSION (3) --- (None) > --- UTILITY (4) ------ Advanced Cooling System High-capacity Storage Unit > --- WEAPON (3) ------- Heavy Phase Cannon > --- INVENTORY (20) --- Improved Heat Sink High-capacity Storage Unit High-capacity Battery (175) Large Matter Pod (150) Faulty Experimental Sensor Array Improved Signal Interpreter Particle Charger Relay Coupler [NC] (34) Relay Coupler [NC] (34) Relay Coupler [Grunt] (37) Relay Coupler [Grunt] (35) Relay Coupler [Grunt] (37) Relay Coupler [Sentry] (24) Relay Coupler [Sentry] (28) Relay Coupler [Hunter] (21) Rocket Launcher Peak State ------------ > --- POWER ------------ Micro Nuclear Core > --- PROPULSION ------- Advanced Treads Advanced Treads Advanced Treads > --- UTILITY ---------- Advanced Heat Sink High-capacity Storage Unit Hardened Heavy Armor Plating > --- WEAPON ----------- Particle Gun Field Laser Field Laser > --- INVENTORY -------- Advanced Treads High-capacity Storage Unit High-capacity Battery High-capacity Battery Large Matter Pod Experimental Sensor Array Improved Signal Interpreter Particle Charger Hardened Heavy Armor Plating Relay Coupler [NC] Relay Coupler [NC] Relay Coupler [Grunt] Relay Coupler [Grunt] Relay Coupler [Grunt] Relay Coupler [Sentry] Relay Coupler [Sentry] Relay Coupler [Hunter] EMP Blaster Rocket Launcher [Rating: 40] Favorites ----------- Power Ion Engine Engine Ion Engine Power Core Light Nuclear Core Propulsion Advanced Treads Treads Advanced Treads Leg Aluminum Leg Utility High-capacity Storage Unit Device Improved Heat Sink Storage High-capacity Storage Unit Protection Light Armor Plating Weapon Field Laser Energy Gun Field Laser Energy Cannon Particle Cannon Ballistic Gun Assault Rifle Launcher Rocket Launcher Build | -11 -10 -10 -10 -9 -8 -8 ------- Run | Jun Mat Min Exi Min Mat Gar Slots Evolved 4 | . . . . . 4 . Power . | . . . . . . . Propulsion 1 | . . . . . 1 . Utility 2 | . . . . . 2 . Weapon 1 | . . . . . 1 . Parts Attached 64 | . 8 1 3 6 22 24 Power 6 | . 3 . . . 1 2 Engine 4 | . 3 . . . 1 . Core 2 | . . . . . . 2 Reactor . | . . . . . . . Propulsion 16 | . 1 . . 2 10 3 Treads 10 | . . . . . 7 3 Leg 6 | . 1 . . 2 3 . Wheel . | . . . . . . . Hover . | . . . . . . . Flight . | . . . . . . . Utility 19 | . 2 . 3 1 5 8 Device 9 | . 1 . 2 1 1 4 Storage 2 | . 1 . 1 . . . Processor . | . . . . . . . Hackware . | . . . . . . . Protection 8 | . . . . . 4 4 Artifact . | . . . . . . . Weapon 23 | . 2 1 . 3 6 11 Energy Gun 10 | . 2 . . 1 1 6 Energy Cannon 3 | . . . . . 1 2 Ballistic Gun 5 | . . . . 2 3 . Ballistic Cannon . | . . . . . . . Launcher 5 | . . 1 . . 1 3 Special Weapon . | . . . . . . . Impact Weapon . | . . . . . . . Slashing Weapon . | . . . . . . . Piercing Weapon . | . . . . . . . Special Melee Weapon . | . . . . . . . Unidentified Prototypes 1 | . . . 1 . . . Corrupted Parts 6 | . . . . . 2 4 System Corruption 17 | . . . . . 8 9 Parts Lost 20 | . 1 . . 1 4 14 Power 2 | . 1 . . . . 1 Propulsion 7 | . . . . . 2 5 Utility 4 | . . . . . 1 3 Weapon 7 | . . . . 1 1 5 Highest Loss Streak 11 | . 1 . . 1 1 11 To Critical Strikes . | . . . . . . . Average Slot Usage (%) 97 | . 98 100 100 100 98 94 Engine 9 | . 14 14 14 14 9 1 Core 2 | . . . . . . 7 Treads 10 | . . . . . 12 26 Leg 16 | . 28 28 28 28 12 . Device 12 | . 12 14 14 14 9 12 Storage 11 | . 14 14 14 14 9 9 Protection 6 | . . . . . 17 11 Energy Gun 14 | . 13 14 14 12 9 18 Ballistic Gun 7 | . 14 4 . 15 17 3 Launcher 4 | . . 9 14 . . 3 Naked Turns . | . . . . . . . Heaviest Build 78 | 11 30 32 52 50 74 78 Greatest Support 66 | 20 20 20 20 20 66 66 Greatest Overweight (x) 22 | . 1 1 2 2 22 13 Average Overweight (x) . | . . 1 1 2 1 . Largest Inventory Capacity 20 | 8 15 15 20 20 20 20 Average Capacity 17 | 8 11 15 18 20 20 20 Most Carried 20 | 5 10 15 16 19 20 20 Average Carried 15 | 4 6 14 15 16 18 19 Final Capacity 20 | 8 15 15 20 20 20 20 Final Carried 20 | 2 9 15 15 19 20 16 Class Distribution -------------------- 71% | Mutant 24% | Tank 3% | Scavenger-Tank Dominant Class ---------------- Mutant | -10/Materials Mutant | -10/Mines Mutant | -10/Exiles Mutant | -9/Mines Tank | -8/Materials Mutant | -8/Garrison Resources | -11 -10 -10 -10 -9 -8 -8 ----------- Run | Jun Mat Min Exi Min Mat Gar Matter Collected 1897 | 200 88 38 . 380 699 492 Remotely . | . . . . . . . Salvage Created 2934 | . 257 17 . 269 979 1412 Parts 136 | . 14 5 . 12 37 68 Haulers Intercepted . | . . . . . . . Recyclers Shooed 1 | . . . . . 1 . Parts Field Recycled . | . . . . . . . Retrieved Matter . | . . . . . . . Parts Self-Destructed . | . . . . . . . Prevented . | . . . . . . . Kills | -11 -10 -10 -10 -9 -8 -8 ------- Run | Jun Mat Min Exi Min Mat Gar Combat Hostiles Destroyed 71 | . 6 3 . 6 23 33 Guns 52 | . 6 . . 6 14 26 Cannons 10 | . . . . . 3 7 AOE 9 | . . 3 . . 6 . Classes Destroyed 7 | . 1 1 . 2 1 2 Swarmer 8 | . . 3 . . . 5 Grunt 44 | . 6 . . 4 18 16 Brawler 5 | . . . . 1 2 2 Duelist 1 | . . . . 1 . . Sentry 7 | . . . . . 3 4 Hunter 3 | . . . . . . 3 Programmer 3 | . . . . . . 3 Best Kill Streak 6 | . 2 3 . 4 6 6 Combat Bots Only 6 | . 2 3 . 4 6 6 Max Kills in Single Turn 3 | . 1 3 . 2 3 2 Gunslinging 1 | . . . . 1 . . Exploded 3 | . . 3 . . 3 . Melee . | . . . . . . . Uniques/NPCs Destroyed . | . . . . . . . Combat | -11 -10 -10 -10 -9 -8 -8 -------- Run | Jun Mat Min Exi Min Mat Gar Damage Taken 4376 | . 292 31 . 153 998 2902 Core 631 | . 54 . . 27 163 387 Absorbed by Shields 64 | . . . . . . 64 Core Remaining (%) 83 | 100 . . . 67 . . Volleys Fired 223 | . 26 6 . 15 59 117 Largest 3 | . 2 1 . 2 3 3 Hottest 156 | . 70 33 . 70 156 156 Shots Fired 471 | . 52 7 1 30 155 226 Gun 416 | . 52 1 1 30 147 185 Cannon 32 | . . . . . 5 27 Launcher 23 | . . 6 . . 3 14 Special . | . . . . . . . Kinetic 167 | . 28 . . 18 90 31 Thermal 276 | . 24 1 1 12 62 176 Explosive 10 | . . 6 . . 3 1 Electromagnetic 18 | . . . . . . 18 Robot Hit Streak 23 | . 23 8 . 17 20 23 Robot Miss Streak 5 | . 3 . . 1 5 2 Penetration Max . | . . . . . . . Secondary Targets 5 | . . . . 3 1 1 Max Gunslinging Chain 1 | . . . . 1 1 1 Shots Hit Robots 344 | . 42 1 . 24 121 156 Core Hits 148 | . 15 3 . 13 53 64 Critical Kills . | . . . . . . . Critical Parts Destroyed . | . . . . . . . Critical Strikes 4 | . . . . . 1 3 Burn 4 | . . . . . 1 3 Melee Attacks . | . . . . . . . Impact . | . . . . . . . Slashing . | . . . . . . . Piercing . | . . . . . . . Sneak Attacks . | . . . . . . . Combat Hostiles . | . . . . . . . Follow-up Attacks . | . . . . . . . Damage Inflicted 7025 | . 499 135 . 297 2882 3212 Guns 5425 | . 499 . . 297 2126 2503 Cannons 702 | . . . . . 84 618 Explosions 896 | . . 135 . . 670 91 Melee . | . . . . . . . Ramming 2 | . . . . . 2 . Kinetic 2427 | . 247 . . 180 1491 509 Thermal 3732 | . 252 . . 117 719 2644 Explosive 805 | . . 135 . . 670 . Electromagnetic 59 | . . . . . . 59 Impact . | . . . . . . . Slashing . | . . . . . . . Piercing . | . . . . . . . Highest Corruption 23 | . . 1 1 1 8 23 Average Corruption 6 | . . 1 1 1 7 11 Corruption Purged . | . . . . . . . Corruption Blocked . | . . . . . . . Effects 166 | . . 13 4 1 50 98 Message Errors 39 | . . 3 1 . 13 22 Matter Fused 37 | . . 3 . 1 11 22 Heat Flow Errors 11 | . . 1 . . 3 7 Energy Discharges 21 | . . 2 2 . 2 15 Parts Rejected 2 | . . . . . 2 . Parts Fused 4 | . . . . . . 4 Data Loss (minor) 20 | . . 2 . . 7 11 Data Loss (major) 6 | . . 1 . . 2 3 Misfires 8 | . . 1 1 . 3 3 Alerts 3 | . . . . . . 3 Weapon Failures 15 | . . . . . 7 8 Overload Shots . | . . . . . . . Overflow Damage 5 | . . . . . 2 3 Projectiles . | . . . . . . . Explosions 5 | . . . . . 2 3 Melee . | . . . . . . . Knockbacks . | . . . . . . . Impact . | . . . . . . . Kinetic . | . . . . . . . Secondary . | . . . . . . . Self-Inflicted Damage 59 | . . . . . 28 31 Shots 6 | . . . . . 2 4 Rammed 1 | . . . . . 1 . Targets Rammed 2 | . . . . 1 1 . Kicked 1 | . . . . 1 . . Crushed . | . . . . . . . Highest Temperature 409 | . 70 200 . 127 349 409 Average Temperature 123 | . 39 101 . 57 126 134 Received Heat Transfer 1647 | . 180 . . 108 747 612 Effects 11 | . . . . . . 11 Shutdowns 3 | . . . . . . 3 Interference 4 | . . . . . . 4 Short Circuit 4 | . . . . . . 4 Siege Activations . | . . . . . . . Robots Corrupted . | . . . . . . . Combat Hostiles . | . . . . . . . Parts Fried . | . . . . . . . Impact Corruptions . | . . . . . . . Robots Melted . | . . . . . . . Combat Hostiles . | . . . . . . . Parts Melted 12 | . . . . . 1 11 Heat Transferred 7770 | . 740 . . 333 1634 5063 Parts Sabotaged . | . . . . . . . Parts Stolen . | . . . . . . . Parts Stripped . | . . . . . . . Power Chain Reactions 1 | . . . . . . 1 Missiles Intercepted . | . . . . . . . Alert | -11 -10 -10 -10 -9 -8 -8 ------- Run | Jun Mat Min Exi Min Mat Gar Peak Influence 1359 | . 109 96 . 130 345 1359 Initial 42 | . . 9 . . . 42 Average 284 | . 35 43 . 31 168 662 Maximum Alert Level 4 | . . . . . 1 4 Low Security (%) 63 | 100 100 100 . 100 71 12 Level 1 9 | . . . . . 28 11 Level 2 10 | . . . . . . 29 Level 3 10 | . . . . . . 30 Level 4 5 | . . . . . . 16 Level 5 . | . . . . . . . High Security . | . . . . . . . Max Security . | . . . . . . . Squads Dispatched 2 | . . . . . 2 . Investigation . | . . . . . . . Extermination . | . . . . . . . Reinforcement 1 | . . . . . 1 . Assault . | . . . . . . . Garrison 1 | . . . . . 1 . Intercept . | . . . . . . . Searches Triggered . | . . . . . . . Construction Impeded 1 | . . . . . 1 . Haulers Reinforced . | . . . . . . . Active Scanning Responses . | . . . . . . . Cargo Convoy Interrupts . | . . . . . . . Stealth | -11 -10 -10 -10 -9 -8 -8 --------- Run | Jun Mat Min Exi Min Mat Gar Distress Signals 5 | . 1 . . . 4 . Communications Jammed . | . . . . . . . Distress Signals . | . . . . . . . Times Spotted 94 | . 10 3 . 6 37 38 Peak Tracking Total 8 | . 3 3 . 4 8 7 Tactical Retreats 3 | . 2 . . . 1 . Traps | -11 -10 -10 -10 -9 -8 -8 ------- Run | Jun Mat Min Exi Min Mat Gar Traps Triggered 17 | . 2 1 . . 1 13 Indirectly 5 | . . . . . . 5 Trap Hack Attempts . | . . . . . . . Triggered . | . . . . . . . Disarmed . | . . . . . . . Reprogrammed . | . . . . . . . Reused . | . . . . . . . Traps Extracted . | . . . . . . . Installed . | . . . . . . . Triggered . | . . . . . . . Machines | -11 -10 -10 -10 -9 -8 -8 ---------- Run | Jun Mat Min Exi Min Mat Gar Machines Disabled 12 | . . 6 . . 1 5 Max in Single Turn 3 | . . 3 . . 1 1 Garrison Relay 4 | . . . . . . 4 Machines Repaired . | . . . . . . . Machines Sabotaged . | . . . . . . . Overloaded Fab Kills . | . . . . . . . Hacking | -11 -10 -10 -10 -9 -8 -8 --------- Run | Jun Mat Min Exi Min Mat Gar Machines Accessed 12 | . 6 1 1 . 3 1 Terminals 8 | . 6 . . . 1 1 Fabricators . | . . . . . . . Repair Stations . | . . . . . . . Recycling Units . | . . . . . . . Scanalyzers 1 | . . . . . 1 . Garrison Access 1 | . . . . . 1 . Total Hacks 34 | . 18 1 1 . 11 3 Successful 24 | . 13 1 1 . 8 1 Failed 10 | . 5 . . . 3 2 Catastrophic . | . . . . . . . Database Lockouts . | . . . . . . . Manual 10 | . 5 . . . 5 . Terminals 28 | . 18 . . . 7 3 Fabricators . | . . . . . . . Repair Stations . | . . . . . . . Recycling Units . | . . . . . . . Scanalyzers 3 | . . . . . 3 . Garrison Access 1 | . . . . . 1 . Terminal Hacks 16 | . 10 1 1 . 3 1 Record 1 | . . . 1 . . . Robot Analysis 2 | . 2 . . . . . Prototype ID Bank 3 | . 2 . . . 1 . Open Door 1 | . . 1 . . . . Emergency Access Points 1 | . . . . . . 1 Terminal Index 2 | . 1 . . . 1 . Alert Level 1 | . 1 . . . . . Registered Components 2 | . 1 . . . 1 . Zone Layout 3 | . 3 . . . . . Fabricator Hacks . | . . . . . . . Repair Station Hacks . | . . . . . . . Recycling Unit Hacks . | . . . . . . . Scanalyzer 3 | . . . . . 3 . Insert Component 1 | . . . . . 1 . Analyze 2 | . . . . . 2 . Garrison Access Hacks 1 | . . . . . 1 . Unlock Access 1 | . . . . . 1 . Unauthorized Hacks 4 | . 3 . . . 1 . Terminals 4 | . 3 . . . 1 . Botnet 4 | . 3 . . . 1 . Fabricators . | . . . . . . . Repair Stations . | . . . . . . . Recycling Units . | . . . . . . . Scanalyzers . | . . . . . . . Garrison Access . | . . . . . . . Data Cores Recovered . | . . . . . . . Used . | . . . . . . . Hacking Detections 9 | . 6 . . . 2 1 Full Trace Events 1 | . . . . . 1 . Feedback Events . | . . . . . . . Feedback Blocked . | . . . . . . . Robot Schematics Acquired . | . . . . . . . Robots Built . | . . . . . . . Authchips . | . . . . . . . Time . | . . . . . . . Total Robot Build Rating . | . . . . . . . Part Schematics Acquired 1 | . . . . . 1 . Parts Built . | . . . . . . . Authchips . | . . . . . . . Time . | . . . . . . . Total Part Build Rating . | . . . . . . . Parts Repaired . | . . . . . . . Time . | . . . . . . . Parts Recycled . | . . . . . . . Recycled Matter . | . . . . . . . Retrieved Matter . | . . . . . . . Retrieved Components . | . . . . . . . Parts Scanalyzed 1 | . . . . . 1 . Part Schematics Acquired 1 | . . . . . 1 . Parts Damaged . | . . . . . . . Bothacking | -11 -10 -10 -10 -9 -8 -8 ------------ Run | Jun Mat Min Exi Min Mat Gar Used RIF Installer 1 | . . . . . . 1 Robots Hacked . | . . . . . . . Non-combat . | . . . . . . . Combat . | . . . . . . . Robot Hacks Applied . | . . . . . . . Relay Couplers Released 18 | . . . . . . 18 Machine Destruction 18 | . . . . . . 18 Fabnet Peak Effective % . | . . . . . . . Robots Rewired 3 | . . . . . . 3 Allies Hacked . | . . . . . . . Hacks Repelled . | . . . . . . . Allies | -11 -10 -10 -10 -9 -8 -8 -------- Run | Jun Mat Min Exi Min Mat Gar Total Allies 4 | . . 1 . . . 3 Largest Group 3 | . . 1 . . . 3 Highest-Rated Group 48 | . . 31 . . . 48 Highest-Rated Ally 31 | . . 31 . . . 16 Total Orders . | . . . . . . . Ally Attacks 28 | . . 11 . . . 17 Total Damage 390 | . . 171 . . . 219 Kills 4 | . . 1 . . . 3 Allies Corrupted . | . . . . . . . Allies Melted . | . . . . . . . Intel | -11 -10 -10 -10 -9 -8 -8 ------- Run | Jun Mat Min Exi Min Mat Gar Robot Analysis Total 2 | . 2 . . . . . Derelict Logs Recovered 3 | . . 2 . 1 . . Drone Launches . | . . . . . . . Drone Recoveries . | . . . . . . . Exploration | -11 -10 -10 -10 -9 -8 -8 ------------- Run | Jun Mat Min Exi Min Mat Gar Turns Passed 7075 | 2 1005 1465 643 412 1280 2268 Spaces Moved 2945 | 1 556 687 267 137 426 871 Core 5 | . . . . . 4 1 Treads 1106 | . . . . . 236 870 Legs 1834 | 1 556 687 267 137 186 . Wheels . | . . . . . . . Hover . | . . . . . . . Flight . | . . . . . . . Fastest Speed 120 | 120 120 190 190 260 186 145 Average Speed 200 | 120 154 190 239 260 232 202 Slowest Speed 1150 | 120 190 190 260 260 1150 700 Overloaded Moves . | . . . . . . . Propulsion Burnouts . | . . . . . . . Robots Hopped . | . . . . . . . Cave-ins Triggered . | . . . . . . . Exploration Rate (%) 60 | 2 96 97 69 29 44 85 Regions Visited 6 Branch Regions 3 Pre-discovered Areas 1 | . . . 1 . . . Known Exits Taken 2 | . . . 1 . 1 . Unknown Exits Taken 4 | 1 1 1 . 1 . . Scrap Searched 2 | . . 1 . 1 . . Spaces Dug . | . . . . . . . Terrain Destroyed 61 | . . 22 . . 30 9 Melee . | . . . . . . . Projectile . | . . . . . . . AOE 61 | . . 22 . . 30 9 Terrain Rammed . | . . . . . . . Walls Destroyed . | . . . . . . . Machines Disabled . | . . . . . . . Actions | -11 -10 -10 -10 -9 -8 -8 --------- Run | Jun Mat Min Exi Min Mat Gar Total 3701 | 4 651 842 272 161 601 1170 Wait 346 | . 51 137 . . 72 86 Move 2940 | . 555 686 266 136 426 871 Hop . | . . . . . . . Pick Up 51 | . 8 9 1 2 13 18 Fast Attach 16 | . 3 . . 1 4 8 Attach 21 | . 1 . . 1 11 8 Detach 2 | . . . . 1 . 1 Swap 27 | . 4 1 3 4 7 8 Drop 43 | 4 3 3 2 . 8 23 Fire 223 | . 26 6 . 15 59 117 Melee . | . . . . . . . Ram . | . . . . . . . Kick 1 | . . . . 1 . . Crush 1 | . . . . . 1 . Escape Stasis 19 | . . . . . . 19 Rewire 11 | . . . . . . 11 Trap . | . . . . . . . Miscellaneous . | . . . . . . . Route ------- -11/Junkyard -10/Materials (discovered 5 exits: *Mat x3 / *Min x2) -10/Mines (discovered 3 exits: *Mat x2 / *Exi) -10/Exiles (discovered 2 exits: *Min x2) -9/Mines -8/Materials -8/Garrison (discovered 4 exits: [*Mat x4]) History --------- Turn | Location | Event 3 | -11/Junkyard | Discovered new exit (range 0) 3 | -11/Junkyard | Entered Materials 144 | -10/Materials | Discovered new exit (range 16) 313 | -10/Materials | Build established: Mutant 439 | -10/Materials | Discovered new exit (range 4) 439 | -10/Materials | Discovered new exit (range 13) 671 | -10/Materials | Discovered new exit (range 16) 914 | -10/Materials | Discovered new exit (range 15) 1008 | -10/Materials | Entered Mines 1082 | -10/Mines | Discovered new exit (range 3) 1102 | -10/Mines | Met a Derelict who couldn't figure out how to use a Trap Extractor 1209 | -10/Mines | Received a Rocket Launcher from a helpful Derelict 1267 | -10/Mines | Found a damaged Exp. Sensor Array with a note attached 1272 | -10/Mines | Found Prototype Device 1749 | -10/Mines | Deemed a non-threat by the Exiles lab entrance 1749 | -10/Mines | Discovered new exit (range 5) 1958 | -10/Mines | Identified exit to Materials 2134 | -10/Mines | Received a Mining Laser from a helpful Derelict 2473 | -10/Mines | Entered Exiles 2474 | -10/Exiles | Identified exit to Mines 2525 | -10/Exiles | Met 8R-AWN 2551 | -10/Exiles | Met EX-HEX 2630 | -10/Exiles | Identified Exp. Sensor Array 2729 | -10/Exiles | Met EX-BIN 2763 | -10/Exiles | Met EX-DEC 2850 | -10/Exiles | Visited The Gauntlet 2973 | -10/Exiles | Learned location of Zion (-6) 3116 | -10/Exiles | Entered Mines 3403 | -9/Mines | Discovered new exit (range 13) 3515 | -9/Mines | Learned Materials terminal intel 3528 | -9/Mines | Entered Materials 3528 | -8/Materials | Evolved 4 slots: Propulsion x1, Utility x2, Weapon x1 3529 | -8/Materials | Loaded intel: 12 terminal locations 4531 | -8/Materials | Build established: Tank 4753 | -8/Materials | Garrison activated, responded to threat 4808 | -8/Materials | Identified exit to Garrison 4808 | -8/Materials | Entered Garrison 4824 | -8/Garrison | Triggered checkpoint 4864 | -8/Garrison | Discovered new exit (range 6) 5048 | -8/Garrison | Triggered checkpoint 5096 | -8/Garrison | Garrison Relay disabled 5218 | -8/Garrison | Triggered checkpoint 5334 | -8/Garrison | Triggered checkpoint 5372 | -8/Garrison | Triggered checkpoint 5497 | -8/Garrison | Discovered new exit (range 13) 5556 | -8/Garrison | Garrison Relay disabled 5560 | -8/Garrison | Triggered checkpoint 5882 | -8/Garrison | Build established: Mutant 5959 | -8/Garrison | System corruption reached 10% 6070 | -8/Garrison | Triggered checkpoint 6106 | -8/Garrison | Garrison Relay disabled 6220 | -8/Garrison | Discovered new exit (range 14) 6365 | -8/Garrison | Installed Relay Interface Framework 6599 | -8/Garrison | Discovered new exit (range 9) 6625 | -8/Garrison | Triggered checkpoint 6991 | -8/Garrison | Core integrity fell below 50% 7052 | -8/Garrison | Core integrity fell below 20% 7076 | -8/Garrison | Destroyed by H-55 Commando with Gauss Rifle Last Messages --------------- 07054_ Penetrated by Slug. 07055_ Dropped Hcp. Battery. 07055_ Penetrated by Slug. 07055_ H-55 Commando destroyed. 07056_ E1>BCCYUS7P19JCXE8 BRGRF 07058_ Extracted 21 energy. 07058_ ALERT: Garrison interior compromised. 07059_ Slug penetrates Wall. 07060_ Penetrated by Slug. 07061_ H-55 Commando destroyed. 07062_ Penetrated by Slug. 07066_ Slug penetrates Wall. 07069_ Acquired Hcp. Battery. 07069_ Penetrated by Slug. 07070_ Dropped Hcp. Battery. 07071_ Extracted 250 energy. 07072_ =2>EHNRI/D>Z=RR7ZW,5 07072_ Penetrated by Slug. Map ----- +----------------------------------------------------+ | ?????# ^#????????????????????????????????????????? | | ?????# #????????????????????????????????????????? | | ?????# #????????????????????????????????????????? | | ?????# #????????????????????????????????????????? | | ###### #????????????????????????????????????????? | | ][%## #????????????????????????????????????????? | | !%==## ##???????????????????????????????????????? | | % %* #???????????????????????????????????????? | | = #???????????????????????????????????????? | | = #???????????????????????????????????????? | | [ ## #???????????????????????????????????????? | | ## ###?????????????????????????????????????? | | #?????????????????????????????????????? | | #?????????????????????????????????????? | | #?????????????????????????????????????? | | [ #?????????????????????????????????????? | | ## %###?????????############????????????????? | | ## %##########??#""""""""""#????????????????? | | [*! ! ####"!]!!=!"""#????????????????? | | *=%=%= ## ""#????????????????? | | !!! %=%###+### ## ++++ !"#????????????????? | | [##%*##?????# ## ; ^|"#????????????????? | | ##=%#??# ### h! ="#????????????????? | | ######%[#??# " ; !%[; !"#????????????????? | | ?????#* #??# ### ## ! ""#????????????????? | | ?????# +??????# #### @!]!"""#????????????????? | | ?????# #??????# #??# """""#????????????????? | | ?????# #??????# #??############????????????????? | | ?????# ####+### ##############?????????????????? | | ?????# #?????????????????? | | ?????# #?????????????????? | | ?????####### ########+####### #?????????????????? | | ???????????# #??????????????# #?????????????????? | | ???????????# #??????????????# #?????????????????? | | ???????????# #??????#+###???# #?????????????????? | | #??????????# #??????#=#"#???# #?????????????????? | | #??????????# #??????#= "#???# ###???????????????? | | #??????????# #??????#! =#???# #???????????????? | | #??????????#!#??????# !"#???# #???????????????? | | #??????????#%##+##### #"#???# #???????????????? | | #??????????#= %[ !%[ ###???# ###???????????????? | | #??????????#+#*%=######?????# #?????????????????? | | #????????????# = #??????????# #????????###??????? | | ##???????????#####??????????# #????????# ####???? | | #??????????????????????????# ########## #???? | | #??????????????????????????# * #???? | | [#??????????????????????????# %== ##???? | | =#??????????????????????????######%= ## #???? | | ##?????????+?????+???????????????# + ##???? | | ?????????????????????????????????######## #????? | +----------------------------------------------------+ Best States ------------- Heat Dissipation 62 Coolant Potential 50 Energy Generation 15 Energy Capacity 265 Matter Stores 300 Matter Capacity 300 Sight Range 16 Terrain Scan Density 10 Armor Coverage 600 Resistance: KI 40 Resistance: TH 20 Resistance: EX 20 Resistance: EM 20 Resistance: I 20 Resistance: S 20 Resistance: P 20 Evasion (%) 55 Recoil Reduction 3 Particle Charging 15 Offensive Hacking 10 Item Schematics ----------------- Particle Cannon | -8/Materials | Scanalyzed Robot Schematics ------------------ None Fabricated ------------ Nothing Alien Tech Used ----------------- None Achievements -------------- None Challenges ------------ None Game ------ Seed NetworkSensorPlating Manual? 0 Play Time 00:46:30 Cumulative 161.6 hours Start 2023.05.21 @ 12:41:33 End 2023.05.21 @ 14:44:33 Sessions 1 Manual Loads 0 Difficulty Adventurer Special Mode None Game No. 130 Rogue 63 Adventurer 41 Explorer 26 Win Type - Total 1 Types 1/0/0/0/0/0/0/0/0 Lore% 54 Gallery% 65 Achievement% 67 Wizard Run 0 Options --------- ASCII 0 Keyboard 0 Movement Mouse Keybinds 0 Fullscreen 0 Font 16/Smallcaps Map View 76x50 Tactical HUD 1 Map Filters NONE Filters BRIGHTNESS(115)|SATURATION(100)|LOW_CONTRAST(0,16,30) Steam 1 RUN: 09c4fbdf-0e82-434f-a477-dce9cca7ea4e